Cogmind - Beta 14 @@@ ROGUE MODE // 2025.03.08 @ 21:38:36 Player: Redclaw Result: Destroyed by S-10 Pest with Light Assault Rifle Performance ------------- Evolutions (0) 0 Regions Visited (4) 800 Robots Destroyed (32) 160 Value Destroyed (571) 571 Prototype IDs (23) 460 Alien Tech Used (0) 0 Bonus (300) 300 TOTAL SCORE: 2291 Bonus ------- Aligned with FarCom 300 Cogmind --------- Core Integrity 0/250 Matter 290/300 Energy 221/265 System Corruption 1% Temperature Cool (93) Movement Treading (160) Location -9/Mines Parts ------- > --- POWER (1) -------- Improved Ion Engine (fused) > --- PROPULSION (2) --- Improved Treads Improved Treads > --- UTILITY (2) ------ Large Storage Unit Core Shielding > --- WEAPON (2) ------- Particle Cannon Guided Plasma Cannon > --- INVENTORY (15) --- Ion Engine Improved Treads Improved Treads Large Storage Unit Targeting Computer ECM Suite Core Shielding Shield Generator Particle Cannon Peak State ------------ > --- POWER ------------ Improved Ion Engine > --- PROPULSION ------- Improved Treads Improved Treads > --- UTILITY ---------- Large Storage Unit Core Shielding > --- WEAPON ----------- Particle Cannon Guided Plasma Cannon > --- INVENTORY -------- Ion Engine Improved Treads Improved Treads Large Storage Unit Targeting Computer ECM Suite Core Shielding Shield Generator Particle Cannon [Rating: 19] Favorites ----------- Power Improved Ion Engine Engine Improved Ion Engine Propulsion Improved Treads Treads Improved Treads Utility Large Storage Unit Storage Large Storage Unit Processor Signal Interpreter Protection Core Shielding Weapon EM Pulse Gun Energy Gun EM Pulse Gun Energy Cannon Particle Cannon Ballistic Gun Light Assault Rifle Build | -11 -10 -10 -10 -9 ------- Run | Yrd Mat Min Exi Min Slots Evolved . | . . . . . Power . | . . . . . Propulsion . | . . . . . Utility . | . . . . . Weapon . | . . . . . Parts Attached 21 | 4 11 2 . 4 Power 2 | 1 1 . . . Engine 2 | 1 1 . . . Core . | . . . . . Reactor . | . . . . . Propulsion 4 | 2 2 . . . Treads 4 | 2 2 . . . Leg . | . . . . . Wheel . | . . . . . Hover . | . . . . . Flight . | . . . . . Utility 5 | . 4 . . 1 Device . | . . . . . Storage 2 | . 2 . . . Processor 1 | . 1 . . . Hackware . | . . . . . Protection 2 | . 1 . . 1 Artifact . | . . . . . Weapon 10 | 1 4 2 . 3 Energy Gun 5 | . 3 2 . . Energy Cannon 4 | . 1 . . 3 Ballistic Gun 1 | 1 . . . . Ballistic Cannon . | . . . . . Launcher . | . . . . . Special Weapon . | . . . . . Impact Weapon . | . . . . . Slashing Weapon . | . . . . . Piercing Weapon . | . . . . . Special Melee Weapon . | . . . . . Unidentified Prototypes . | . . . . . Parts Lost 4 | . 1 1 . 2 Power . | . . . . . Propulsion 1 | . 1 . . . Utility . | . . . . . Weapon 3 | . . 1 . 2 Highest Loss Streak 2 | . 1 1 . 2 To Critical Strikes 1 | . 1 . . . Average Slot Usage (%) 95 | . 89 100 100 87 Engine 14 | . 14 14 14 14 Treads 26 | . 23 28 28 28 Storage 13 | . 13 14 14 14 Processor 11 | . 9 14 14 1 Protection 1 | . 2 . . 12 Energy Gun 21 | . 19 21 28 3 Energy Cannon 3 | . 3 6 . 12 Peak Build Rating 19 | 4 12 12 12 19 Average Rating 10 | 2 7 11 11 12 On Entrance 7 | . 4 12 11 12 Naked Turns . | . . . . . Heaviest Build 33 | 6 33 33 31 32 Greatest Support 46 | 40 46 46 46 46 Greatest Overweight (x) 1 | . 1 . . . Average Overweight (x) . | . . . . . Largest Inventory Capacity 15 | 5 15 15 15 15 Average Capacity 14 | 5 14 15 15 15 Most Carried 15 | 3 10 10 15 12 Average Carried 8 | . 5 9 10 10 Final Capacity 15 | 5 15 15 15 15 Final Carried 11 | 1 10 10 11 9 Class Distribution -------------------- 100% | Mutant Dominant Class ---------------- Mutant | -10/Materials Mutant | -10/Mines Mutant | -10/Exiles Mutant | -9/Mines Resources | -11 -10 -10 -10 -9 ----------- Run | Yrd Mat Min Exi Min Matter Collected 459 | 240 113 73 . 33 Remotely . | . . . . . Salvage Created 786 | . 379 272 . 135 Parts 56 | . 28 16 . 12 Haulers Intercepted . | . . . . . Recyclers Shooed . | . . . . . Parts Field Recycled . | . . . . . Retrieved Matter . | . . . . . Parts Self-Destructed . | . . . . . Prevented . | . . . . . Kills | -11 -10 -10 -10 -9 ------- Run | Yrd Mat Min Exi Min Combat Hostiles Destroyed 28 | . 12 8 . 8 Guns 18 | . 11 5 . 2 Cannons 6 | . . . . 6 AOE 4 | . 1 3 . . Classes Destroyed 4 | . 4 . . . Builder 1 | . 1 . . . Watcher 3 | . 3 . . . Swarmer 20 | . 9 3 . 8 Grunt 8 | . 3 5 . . Best Kill Streak 9 | . 9 5 . 3 Combat Bots Only 7 | . 7 5 . 3 Max Kills in Single Turn 3 | . 2 3 . 1 Gunslinging 1 | . 1 . . . Exploded 3 | . 1 3 . . Melee . | . . . . . Uniques/NPCs Destroyed . | . . . . . Combat | -11 -10 -10 -10 -9 -------- Run | Yrd Mat Min Exi Min Hostile Shots Fired 150 | . 87 21 . 42 Missed 41 | . 31 4 . 6 Damage Taken 1110 | . 568 256 . 286 Core 250 | . 144 70 . 36 Absorbed by Shields . | . . . . . Redirected to Shielding 24 | . 17 . . 7 Core Remaining (%) 100 | 100 . . . . Volleys Fired 75 | . 40 15 . 20 Largest 2 | . 2 2 . 1 Hottest 120 | . 108 108 . 120 Shots Fired 100 | . 50 30 . 20 Gun 73 | . 48 20 . 5 Cannon 27 | . 2 10 . 15 Launcher . | . . . . . Special . | . . . . . Kinetic 19 | . 19 . . . Thermal 27 | . 2 10 . 15 Explosive . | . . . . . Electromagnetic 54 | . 29 20 . 5 Robot Hit Streak 6 | . 5 6 . 3 Robot Miss Streak 5 | . 5 2 . 4 Penetration Max . | . . . . . Secondary Targets 3 | . 2 1 . . Max Gunslinging Chain 1 | . 1 1 . . Shots Hit Robots 54 | . 29 16 . 9 Core Hits 38 | . 19 11 . 8 Critical Kills . | . . . . . Critical Parts Destroyed . | . . . . . Critical Strikes 1 | . . 1 . . Corrupt 1 | . . 1 . . Melee Attacks . | . . . . . Impact . | . . . . . Slashing . | . . . . . Piercing . | . . . . . Sneak Attacks . | . . . . . Combat Hostiles . | . . . . . Follow-up Attacks . | . . . . . Damage Inflicted 1052 | . 411 386 . 255 Guns 566 | . 349 182 . 35 Cannons 283 | . . 63 . 220 Explosions 203 | . 62 141 . . Melee . | . . . . . Ramming . | . . . . . Kinetic 107 | . 107 . . . Thermal 486 | . 62 204 . 220 Explosive . | . . . . . Electromagnetic 459 | . 242 182 . 35 Impact . | . . . . . Slashing . | . . . . . Piercing . | . . . . . Highest Corruption 1 | . 1 1 1 1 Average Corruption 1 | . 1 1 1 1 Corruption Purged . | . . . . . Corruption Blocked . | . . . . . Effects 21 | . 5 8 5 3 Message Errors 4 | . . 2 1 1 Matter Fused 6 | . 2 3 1 . Energy Discharges 1 | . . . . 1 Parts Fused 2 | . . 1 1 . Data Loss (minor) 7 | . 2 2 2 1 Data Loss (major) 1 | . 1 . . . Overload Shots . | . . . . . Overflow Damage 3 | . 2 . . 1 Projectiles 1 | . . . . 1 Explosions 2 | . 2 . . . Melee . | . . . . . Knockbacks . | . . . . . Impact . | . . . . . Kinetic . | . . . . . Secondary . | . . . . . Self-Inflicted Damage 40 | . . 40 . . Shots 1 | . . 1 . . Rammed . | . . . . . Targets Rammed . | . . . . . Kicked . | . . . . . Crushed . | . . . . . Highest Temperature 473 | . 72 473 . 378 Average Temperature 162 | . 26 264 . 117 Received Heat Transfer 186 | . 60 126 . . Effects 3 | . . 3 . . Shutdowns 2 | . . 2 . . Energy Bleed 1 | . . 1 . . Siege Activations . | . . . . . Robots Corrupted . | . . . . . Combat Hostiles . | . . . . . Parts Fried 1 | . . 1 . . Impact Corruptions . | . . . . . Robots Melted . | . . . . . Combat Hostiles . | . . . . . Parts Melted 1 | . . . . 1 Heat Transferred 785 | . 50 261 . 474 Parts Sabotaged . | . . . . . Parts Stolen . | . . . . . Parts Stripped . | . . . . . Power Chain Reactions 1 | . 1 . . . Alert | -11 -10 -10 -10 -9 ------- Run | Yrd Mat Min Exi Min Peak Influence 259 | . 259 146 . 140 Initial . | . . . . . Average 70 | . 74 67 . 80 Maximum Alert Level 1 | . 1 . . . Low Security (%) 93 | 100 86 100 . 100 Level 1 6 | . 13 . . . Level 2 . | . . . . . Level 3 . | . . . . . Level 4 . | . . . . . Level 5 . | . . . . . High Security . | . . . . . Max Security . | . . . . . Squads Dispatched 1 | . 1 . . . Investigation . | . . . . . Extermination . | . . . . . Reinforcement 1 | . 1 . . . Assault . | . . . . . Garrison . | . . . . . Intercept . | . . . . . Searches Triggered . | . . . . . Construction Impeded . | . . . . . Haulers Reinforced . | . . . . . Active Scanning Responses . | . . . . . Cargo Convoy Interrupts . | . . . . . Stealth | -11 -10 -10 -10 -9 --------- Run | Yrd Mat Min Exi Min Distress Signals 1 | . 1 . . . Communications Jammed . | . . . . . Distress Signals . | . . . . . Times Spotted 30 | . 15 5 . 10 Peak Tracking Total 6 | . 6 2 . 4 Tactical Retreats . | . . . . . Traps | -11 -10 -10 -10 -9 ------- Run | Yrd Mat Min Exi Min Traps Triggered 5 | . 5 . . . Indirectly . | . . . . . Trap Hack Attempts . | . . . . . Triggered . | . . . . . Disarmed 6 | . 6 . . . Reprogrammed . | . . . . . Reused . | . . . . . Traps Extracted . | . . . . . Installed . | . . . . . Triggered . | . . . . . Machines | -11 -10 -10 -10 -9 ---------- Run | Yrd Mat Min Exi Min Machines Disabled 2 | . 1 1 . . Max in Single Turn 1 | . 1 1 . . Machines Repaired . | . . . . . Machines Dismantled . | . . . . . Machines Sabotaged . | . . . . . Overloaded Fab Kills . | . . . . . Hacking | -11 -10 -10 -10 -9 --------- Run | Yrd Mat Min Exi Min Machines Accessed 8 | . 4 . 4 . Terminals 2 | . 2 . . . Fabricators . | . . . . . Repair Stations 1 | . 1 . . . Recycling Units 1 | . 1 . . . Scanalyzers . | . . . . . Garrison Access . | . . . . . Total Hacks 46 | . 5 . 41 . Successful 45 | . 4 . 41 . Failed 1 | . 1 . . . Catastrophic . | . . . . . Database Lockouts . | . . . . . Manual 1 | . . . 1 . Terminals 2 | . 2 . . . Fabricators . | . . . . . Repair Stations 2 | . 2 . . . Recycling Units 1 | . 1 . . . Scanalyzers . | . . . . . Garrison Access . | . . . . . Terminal Hacks 43 | . 2 . 41 . Record 40 | . . . 40 . Disarm Traps 1 | . 1 . . . Dispatch Records 1 | . 1 . . . Derelict Proto ID Bank 1 | . . . 1 . Fabricator Hacks . | . . . . . Repair Station Hacks 1 | . 1 . . . Scan Component 1 | . 1 . . . Recycling Unit Hacks 1 | . 1 . . . Report Inventory 1 | . 1 . . . Scanalyzer . | . . . . . Garrison Access Hacks . | . . . . . Unauthorized Hacks . | . . . . . Terminals . | . . . . . Fabricators . | . . . . . Repair Stations . | . . . . . Recycling Units . | . . . . . Scanalyzers . | . . . . . Garrison Access . | . . . . . Data Cores Recovered . | . . . . . Used . | . . . . . Hacking Detections 1 | . 1 . . . Full Trace Events . | . . . . . Feedback Events . | . . . . . Feedback Blocked . | . . . . . Robot Schematics Acquired . | . . . . . Robots Built . | . . . . . Authchips . | . . . . . Time . | . . . . . Total Robot Build Rating . | . . . . . Part Schematics Acquired . | . . . . . Parts Built . | . . . . . Authchips . | . . . . . Time . | . . . . . Total Part Build Rating . | . . . . . Parts Repaired . | . . . . . Time . | . . . . . Parts Recycled . | . . . . . Recycled Matter . | . . . . . Retrieved Matter . | . . . . . Retrieved Components . | . . . . . Parts Scanalyzed . | . . . . . Part Schematics Acquired . | . . . . . Parts Damaged . | . . . . . Bothacking | -11 -10 -10 -10 -9 ------------ Run | Yrd Mat Min Exi Min Used RIF Installer . | . . . . . Robots Hacked . | . . . . . Non-combat . | . . . . . Combat . | . . . . . Robot Hacks Applied . | . . . . . Relay Couplers Released . | . . . . . Fabnet Peak Effective % . | . . . . . Robots Rewired . | . . . . . Allies Hacked . | . . . . . Hacks Repelled . | . . . . . Allies | -11 -10 -10 -10 -9 -------- Run | Yrd Mat Min Exi Min Total Allies 3 | . . 3 . . Largest Group 3 | . . 3 1 . Highest-Rated Group 75 | . . 75 31 . Highest-Rated Ally 31 | . . 31 31 . Total Orders . | . . . . . Ally Attacks . | . . . . . Total Damage . | . . . . . Kills . | . . . . . Allies Corrupted . | . . . . . Allies Melted . | . . . . . Intel | -11 -10 -10 -10 -9 ------- Run | Yrd Mat Min Exi Min Robot Analysis Total . | . . . . . Derelict Logs Recovered 1 | . . 1 . . Drone Launches . | . . . . . Drone Recoveries . | . . . . . Exploration | -11 -10 -10 -10 -9 ------------- Run | Yrd Mat Min Exi Min Turns Passed 3899 | 74 1225 910 1338 352 Spaces Moved 2216 | 43 608 539 834 192 Core 12 | 12 . . . . Treads 2204 | 31 608 539 834 192 Legs . | . . . . . Wheels . | . . . . . Hover . | . . . . . Flight . | . . . . . Fastest Speed 50 | 50 160 160 160 160 Average Speed 165 | 129 180 160 160 160 Slowest Speed 240 | 160 240 160 160 160 Overloaded Moves . | . . . . . Propulsion Burnouts . | . . . . . Robots Hopped . | . . . . . Cave-ins Triggered . | . . . . . Exploration Rate (%) 57 | 5 77 95 94 18 Regions Visited 4 Branch Regions 3 Pre-discovered Areas 1 | . . . 1 . Known Exits Taken 3 | . 1 1 1 . Unknown Exits Taken 1 | 1 . . . . Scrap Searched 2 | . . 1 . 1 Spaces Dug . | . . . . . Terrain Destroyed 11 | . . 11 . . Melee . | . . . . . Projectile . | . . . . . AOE 11 | . . 11 . . Terrain Rammed . | . . . . . Walls Destroyed . | . . . . . Machines Disabled . | . . . . . Actions | -11 -10 -10 -10 -9 --------- Run | Yrd Mat Min Exi Min Total 2367 | 62 692 556 839 218 Wait 14 | 9 5 . . . Move 2212 | 42 607 538 833 192 Hop . | . . . . . Pick Up 32 | 6 21 1 3 1 Fast Attach . | . . . . . Attach 17 | 4 9 1 . 3 Detach 1 | . . . . 1 Swap 4 | . 2 1 . 1 Drop 11 | 1 8 . 2 . Fire 75 | . 40 15 . 20 Melee . | . . . . . Ram . | . . . . . Kick . | . . . . . Crush . | . . . . . Escape Stasis . | . . . . . Rewire 1 | . . . 1 . Trap . | . . . . . Miscellaneous . | . . . . . Route ------- -11/Scrapyard -10/Materials (discovered 3 exits: *Mat x2 / *Min) -10/Mines (discovered 3 exits: *Mat x2 / *Exi) -10/Exiles (discovered 2 exits: *Min x2) -9/Mines History --------- Turn | Location | Event 16 | -11/Scrapyard | Discovered new exit (range 15) 75 | -11/Scrapyard | Entered Materials 309 | -10/Materials | Build established: Mutant 344 | -10/Materials | Destroyed 7 combat bots 473 | -10/Materials | Discovered new exit (range 12) 505 | -10/Materials | Identified exit to Materials 548 | -10/Materials | Core integrity fell below 50% 750 | -10/Materials | Discovered exit to Materials (range 10) 1100 | -10/Materials | Discovered new exit (range 10) 1115 | -10/Materials | Identified exit to Mines 1300 | -10/Materials | Entered Mines 1300 | -10/Mines | Discovered exit to Materials (range 7) 1381 | -10/Mines | Met a Derelict bent on vengeance 1620 | -10/Mines | Discovered exit to Materials (range 7) 1690 | -10/Mines | Core integrity fell below 20% 1731 | -10/Mines | Escorted by a lone wolf Derelict 2133 | -10/Mines | Identified exit to Exiles 2195 | -10/Mines | Deemed a non-threat by the Exiles lab entrance 2210 | -10/Mines | Entered Exiles 2210 | -10/Exiles | Accompanied by 2 allies 2240 | -10/Exiles | Led the pair of lost Derelicts to a safe place 2241 | -10/Exiles | Discovered new exit (range 15) 2260 | -10/Exiles | Identified exit to Mines 2295 | -10/Exiles | Met 8R-AWN 2319 | -10/Exiles | Met EX-HEX 2431 | -10/Exiles | Met EX-DEC 2469 | -10/Exiles | Learned location of Zion (-6) 2512 | -10/Exiles | Met EX-BIN 2535 | -10/Exiles | Aligned with FarCom system 2536 | -10/Exiles | Given EX-Vault access code 2632 | -10/Exiles | Opened EX-Vault 2643 | -10/Exiles | Found Gui. Plasma Cannon 2676 | -10/Exiles | Warned to stay clear of 0b10 Research branches 2859 | -10/Exiles | Discovered exit to Mines (range 14) 2997 | -10/Exiles | Visited The Gauntlet 3548 | -10/Exiles | Left Exiles lab with Gui. Plasma Cannon 3548 | -10/Exiles | Entered Mines 3900 | -9/Mines | Destroyed by S-10 Pest with Light Assault Rifle Last Messages --------------- Found 57 Matter. Acquired 8 matter. Acquired Unknown Device. System corrupted: Component data lost. S-10 Pest destroyed. EM Pulse Gun destroyed. Discarded Signal Interpreter. S-10 Pest destroyed. EM Pulse Gun destroyed. S-10 Pest destroyed. Acquired 15 matter. F G|BU ET>B2WO8PMUD2FJ0C>5T Destroyed Flight Unit. Guided weapons can set waypoints, but cannot fire with other weapons in the same volley. S-10 Pest destroyed. Acquired 10 matter. System corrupted: Energy discharge (-53). Lgt. Ion Engine melted. S-10 Pest destroyed. Map ----- +----------------------------------------------------+ | | | | | | | | | | | | | | | | | | | | | | | ?????????????????????????????????????????????????? | | ?????????????????????????????????????????????????? | | ###??????????????????????????????????????????????? | | ##?????########?????####?######????????????????? | | ##???## ##???## ### ##???????????????? | | ##??# #???# ##??????????????? | | #### #???# #??????????????? | | ## ###### %[= ## #??????????????? | | ###### %[% #### ##??????????????? | | ##????# ####=####??####???????????????? | | ### ##?????# #??# #????????????????????????? | | #?## #??????# #??# #????????????????????????? | | #### #??##### ##?# #????????????????????????? | | ##??# ### #####????????????????????? | | ##### ##???# ## @s[#????????????????????? | | #???# ##???## % ######=#?????????Y??????????? | | #???# #????# % ##????? s ????????Y??????????? | | #####*###### ##???????## ??????????????????? | | =%= ##??????????? ?????????????????? | | [%* ##????????????? #???????????????? | | ############## ##???????????????#???????????????? | | ?????????????####????????????????????????????????? | | ?????????????????????????????????????????????????? | | ?????????????????????????????????????????????????? | | ?????????????????????????????????????????????????? | | ?????????????????????????????????????????????????? | | ?????????????????????????????????????????????????? | | ?????????????????????????????????????????????????? | | ?????????????????????????????????????????????????? | | ?????????????????????????????????????????????????? | | ?????????????????????????????????????????????????? | | ?????????????????????????????????????????????????? | | ?????????????????????????????????????????????????? | | ?????????????????????????????????????????????????? | | ?????????????????????????????????????????????????? | | ?????????????????????????????????????????????????? | | ?????????????????????????????????????????????????? | | ?????????????????????????????????????????????????? | | ?????????????????????????????????????????????????? | +----------------------------------------------------+ Best States ------------- Heat Dissipation 25 Energy Generation 12 Energy Capacity 265 Matter Stores 300 Matter Capacity 300 Sight Range 16 Terrain Scan Density 10 Core Shielding 20 Evasion (%) 40 Recoil Reduction 2 Item Schematics ----------------- None Robot Schematics ------------------ None Fabricated ------------ Nothing Alien Tech Used ----------------- None Achievements -------------- None Challenges ------------ None Game ------ Seed ActiveGaussSpear Manual? 0 Play Time 00:40:07 Cumulative 4.7 hours Start 2025.03.08 @ 20:59:28 End 2025.03.08 @ 21:38:36 Sessions 1 Manual Loads 0 Difficulty Rogue Special Mode None Game No. 8 Rogue 5 Adventurer 3 Explorer 0 Win Type - Total 0 Types 0/0/0/0/0/0/0/0/0 Lore% 8 Gallery% 7 Achievement% 11 Wizard Run 0 Options --------- Layout 1 ASCII 0 Keyboard 0 Movement Mouse Keybinds 0 Fullscreen 1 Font 24/Smallcaps Map View 50x35 Zoom Use 4% Tactical HUD 0 Map Filters NONE Filters NONE Steam 1 RUN: c27c0c7c-c8ed-4c5e-a2fc-92afa25cc0da